fUSD/lending_fUSD_20240520
["ID","MTS","AMOUNT","RATE_DAILY","PERIOD"]
[327598092,1716247862183,-670.24,0.00038904,6]
[327598093,1716247862194,-500.0,0.00038904,6]
[327598094,1716247862203,-502.84,0.00038904,6]
[327598095,1716247862212,-261.77136405,0.00038904,6]
[327598096,1716247862222,-500.0,0.00038904,6]
[327598097,1716247862232,-500.0,0.00038904,6]
[327598098,1716247862242,-710.57,0.00038904,6]
[327598099,1716247862255,-541.33,0.00038904,6]
[327598100,1716247862264,-500.0,0.00038904,6]
[327598101,1716247862272,-500.0,0.00038904,6]
[327598102,1716247862281,-819.72,0.00038904,6]
[327598103,1716247862290,-603.2,0.00038904,6]
[327598104,1716247862299,-500.0,0.00038904,6]
[327598105,1716247862307,-500.0,0.00038904,6]
[327598106,1716247862316,-500.0,0.00038904,6]
[327598107,1716247862326,-500.0,0.00038904,6]
[327598108,1716247862335,-500.0,0.00038904,6]
[327598109,1716247862344,-500.0,0.00038904,6]
[327598110,1716247862353,-500.0,0.00038904,6]
[327598111,1716247862362,-500.0,0.00038904,6]
[327598112,1716247862371,-500.0,0.00038904,6]
[327598113,1716247862380,-190.85312509,0.00038904,6]
[327598114,1716247862389,-732.89,0.00038904,6]
[327598115,1716247862398,-500.0,0.00038904,6]
[327598116,1716247862407,-500.0,0.00038904,6]
[327598117,1716247862416,-541.83,0.00038904,6]
[327598118,1716247862426,-500.0,0.00038904,6]
[327598119,1716247862435,-500.0,0.00038904,6]
[327598120,1716247862446,-500.0,0.00038904,6]
[327598121,1716247862455,-500.0,0.00038904,6]
[327598122,1716247862464,-500.0,0.00038904,6]
[327598123,1716247862473,-500.0,0.00038904,6]
[327598124,1716247862481,-641.45,0.00038904,6]
[327598125,1716247862491,-856.71,0.00038904,6]
[327598126,1716247862500,-1285.24,0.00038904,6]
[327598127,1716247862510,-500.0,0.00038904,6]
[327598128,1716247862519,-500.0,0.00038904,6]
[327598129,1716247862528,-613.59,0.00038904,6]
[327598130,1716247862538,-631.61,0.00038904,6]
[327598131,1716247862548,-713.61,0.00038904,6]
[327598132,1716247862557,-655.5,0.00038904,6]
[327598133,1716247862567,-500.0,0.00038904,6]
[327598134,1716247862576,-500.0,0.00038904,6]
[327598135,1716247862585,-721.68,0.00038904,6]
[327598136,1716247862595,-500.0,0.00038904,6]
[327598137,1716247862604,-500.0,0.00038904,6]
[327598138,1716247862613,-1022.48,0.00038904,6]
[327598139,1716247862623,-337.16417585,0.00038904,6]
[327598140,1716247862632,-500.0,0.00038904,6]
[327598141,1716247862642,-500.0,0.00038904,6]
[327598142,1716247862653,-567.89,0.00038904,6]
[327598143,1716247862662,-500.0,0.00038904,6]
[327598144,1716247862672,-500.0,0.00038904,6]
[327598145,1716247862686,-500.0,0.00038904,6]
[327598146,1716247862707,-500.0,0.00038904,6]
[327598147,1716247862727,-1592.32,0.00038904,6]
[327598148,1716247862737,-500.0,0.00038904,6]
[327598149,1716247862746,-166.94,0.00038904,6]
[327598150,1716247862756,-500.0,0.00038904,6]
[327598151,1716247862766,-552.54,0.00038904,6]
[327598152,1716247862775,-500.0,0.00038904,6]
[327598153,1716247862785,-545.2627152,0.00038904,2]
[327598154,1716247862795,-500.0,0.00038904,6]
[327598155,1716247862804,-500.0,0.00038904,6]
[327598156,1716247862813,-698.88,0.00038904,6]
[327598157,1716247862823,-1261.18,0.00038904,6]
[327598158,1716247862832,-500.0,0.00038904,6]
[327598159,1716247862841,-500.0,0.00038904,6]
[327598160,1716247862850,-704.75,0.00038904,6]
[327598161,1716247862859,-500.0,0.00038904,6]
[327598162,1716247862869,-500.0,0.00038904,6]
[327598163,1716247862878,-757.57,0.00038904,6]
[327598164,1716247862888,-500.0,0.00038904,6]
[327598165,1716247862897,-704.77,0.00038904,6]
[327598166,1716247862907,-500.0,0.00038904,6]
[327598167,1716247862916,-1159.42,0.00038904,6]
[327598168,1716247862925,-500.0,0.00038904,6]
[327598169,1716247862934,-1297.75,0.00038904,6]
[327598170,1716247862946,-846.87,0.00038904,6]
[327598171,1716247862955,-500.0,0.00038904,6]
[327598172,1716247862964,-500.0,0.00038904,6]
[327598173,1716247862973,-1025.18,0.00038904,6]
[327598174,1716247862982,-500.0,0.00038904,6]
[327598175,1716247862991,-500.0,0.00038904,6]
[327598176,1716247863001,-1061.22,0.00038904,6]
[327598177,1716247863010,-500.0,0.00038904,6]
[327598178,1716247863019,-500.0,0.00038904,6]
[327598179,1716247863029,-500.0,0.00038904,6]
[327598180,1716247863038,-500.0,0.00038904,6]
[327598181,1716247863047,-2000.0,0.00038904,6]
[327598182,1716247863056,-500.0,0.00038904,6]
[327598183,1716247863066,-665.38,0.00038904,6]
[327598184,1716247863075,-500.0,0.00038904,6]
[327598185,1716247863084,-660.25,0.00038904,6]
[327598186,1716247863093,-559.21,0.00038904,6]
[327598187,1716247863103,-716.65,0.00038904,6]
[327598188,1716247863112,-664.2,0.00038904,6]
[327598189,1716247863122,-500.0,0.00038904,6]
[327598190,1716247863131,-500.0,0.00038904,6]
[327598191,1716247863140,-233.2843683,0.00038904,6]
[327598192,1716247863149,-731.79,0.00038904,6]
[327598193,1716247863159,-837.66,0.00038904,6]
[327598194,1716247863168,-500.0,0.00038904,6]
[327598195,1716247863177,-500.0,0.00038904,6]
[327598196,1716247863186,-508.08,0.00038904,6]
[327598197,1716247863197,-556.65,0.00038904,6]
[327598198,1716247863206,-560.79,0.00038904,6]
[327598199,1716247863215,-536.24,0.00038904,6]
[327598200,1716247863224,-500.0,0.00038904,6]
[327598201,1716247863234,-500.0,0.00038904,6]
[327598202,1716247863243,-500.0,0.00038904,6]
[327598203,1716247863253,-500.0,0.00038904,6]
[327598204,1716247863262,-928.86,0.00038904,6]
[327598205,1716247863271,-586.22,0.00038904,6]
[327598206,1716247863280,-746.54,0.00038904,6]
[327598207,1716247863290,-500.0,0.00038904,6]
[327598208,1716247863299,-762.66,0.00038904,6]
[327598209,1716247863308,-954.68,0.00038904,6]
[327598210,1716247863318,-956.7,0.00038904,6]
[327598211,1716247863327,-500.0,0.00038904,6]
[327598212,1716247863336,-517.52,0.00038904,6]
[327598213,1716247863345,-942.04,0.00038904,6]
[327598214,1716247863354,-501.5,0.00038904,6]
[327598215,1716247863363,-179.04289778,0.00038904,6]
[327598216,1716247863373,-500.0,0.00038904,6]
[327598217,1716247863382,-500.0,0.00038904,6]
[327598218,1716247863391,-500.0,0.00038904,6]
[327598219,1716247863400,-500.0,0.00038904,6]
[327598220,1716247863410,-500.0,0.00038904,6]
[327598221,1716247863418,-649.57,0.00038904,6]
[327598222,1716247863428,-500.0,0.00038904,6]
[327598223,1716247863437,-1124.55,0.00038904,6]
[327598224,1716247863448,-219.85,0.00038904,6]
[327598225,1716247863457,-500.0,0.00038904,6]
[327598226,1716247863466,-530.11492207,0.00038904,6]
[327598227,1716247863475,-310.43314245,0.00038904,6]
[327598228,1716247863484,-500.0,0.00038904,6]
[327598229,1716247863493,-408.27162939,0.00038904,6]
[327598230,1716247863502,-840.58,0.00038904,6]
[327598231,1716247863511,-500.0,0.00038904,6]
[327598232,1716247863520,-500.0,0.00038904,6]
[327598233,1716247863529,-500.0,0.00038904,6]
[327598234,1716247863539,-566.16,0.00038904,6]
[327598235,1716247863548,-500.0,0.00038904,6]
[327598236,1716247863557,-573.91,0.00038904,6]
[327598237,1716247863566,-500.0,0.00038904,6]
[327598238,1716247863575,-830.08,0.00038904,6]
[327598239,1716247863585,-500.0,0.00038904,6]
[327598240,1716247863594,-500.0,0.00038904,6]
[327598241,1716247863603,-504.79,0.00038904,6]
[327598242,1716247863612,-500.0,0.00038904,6]
[327598243,1716247863621,-677.24,0.00038904,6]
[327598244,1716247863630,-500.0,0.00038904,6]
[327598245,1716247863640,-500.0,0.00038904,6]
[327598246,1716247863649,-500.0,0.00038904,6]
[327598247,1716247863659,-1171.23,0.00038904,6]
[327598248,1716247863669,-539.94,0.00038904,6]
[327598249,1716247863679,-577.41,0.00038904,6]
[327598250,1716247863696,-500.0,0.00038904,6]
[327598251,1716247863706,-500.0,0.00038904,6]
[327598252,1716247863715,-500.0,0.00038904,6]
[327598253,1716247863726,-500.0,0.00038904,6]
[327598254,1716247863735,-855.11,0.00038904,6]
[327598255,1716247863744,-1031.52,0.00038904,6]
[327598256,1716247863754,-500.0,0.00038904,6]
[327598257,1716247863764,-500.0,0.00038904,6]
[327598258,1716247863773,-1199.79,0.00038904,6]
[327598259,1716247863783,-620.6,0.00038904,6]
[327598260,1716247863792,-515.13,0.00038904,6]
[327598261,1716247863802,-554.98,0.00038904,6]
[327598262,1716247863812,-500.0,0.00038904,6]
[327598263,1716247863821,-818.89,0.00038904,6]
[327598264,1716247863831,-843.4,0.00038904,6]
[327598265,1716247863840,-500.0,0.00038904,6]
[327598266,1716247863854,-1226.9,0.00038904,6]
[327598267,1716247863866,-300.0,0.00038904,6]
[327598268,1716247863876,-500.0,0.00038904,6]
[327598269,1716247863886,-500.0,0.00038904,6]
[327598270,1716247863895,-1290.35,0.00038904,6]
[327598271,1716247863904,-659.55,0.00038904,6]
[327598272,1716247863914,-500.0,0.00038904,6]
[327598273,1716247863924,-500.0,0.00038904,6]
[327598274,1716247863933,-500.0,0.00038904,6]
[327598275,1716247863945,-1023.08,0.00038904,6]
[327598276,1716247863954,-1206.12,0.00038904,6]
[327598277,1716247863964,-577.44,0.00038904,6]
[327598278,1716247863973,-500.0,0.00038904,6]
[327598279,1716247863982,-694.94,0.00038904,6]
[327598280,1716247863991,-535.8,0.00038904,6]
[327598281,1716247864000,-500.0,0.00038904,6]
[327598282,1716247864010,-500.0,0.00038904,6]
[327598283,1716247864020,-1398.03,0.00038904,6]
[327598284,1716247864029,-500.0,0.00038904,6]
[327598285,1716247864038,-917.47,0.00038904,6]
[327598286,1716247864047,-513.14,0.00038904,6]
[327598287,1716247864057,-1555.05,0.00038904,6]
[327598288,1716247864066,-1595.64,0.00038904,6]
[327598289,1716247864077,-500.0,0.00038904,6]
[327598290,1716247864086,-500.0,0.00038904,6]
[327598291,1716247864096,-500.0,0.00038904,6]
[327598292,1716247864106,-500.0,0.00038904,6]
[327598293,1716247864115,-531.33,0.00038904,6]
[327598294,1716247864125,-1447.7,0.00038904,6]
[327598295,1716247864134,-1862.95,0.00038904,6]
[327598296,1716247864144,-500.46,0.00038904,6]
[327598297,1716247864153,-500.0,0.00038904,6]
[327598298,1716247864163,-879.96,0.00038904,6]
[327598299,1716247864176,-500.0,0.00038904,6]
[327598300,1716247864186,-500.0,0.00038904,6]
[327598301,1716247864198,-500.0,0.00038904,6]
[327598302,1716247864206,-891.13,0.00038904,6]
[327598303,1716247864215,-500.0,0.00038904,6]
[327598304,1716247864224,-1507.26,0.00038904,6]
[327598305,1716247864233,-500.0,0.00038904,6]
[327598306,1716247864242,-151.0,0.00038904,14]
[327598307,1716247864251,-1136.97,0.00038904,6]
[327598308,1716247864261,-500.0,0.00038904,6]
[327598309,1716247864270,-1411.9,0.00038904,6]
[327598310,1716247864280,-500.0,0.00038904,6]
[327598311,1716247864294,-749.83,0.00038904,6]
[327598312,1716247864304,-682.81,0.00038904,6]
[327598313,1716247864313,-500.0,0.00038904,6]
[327598314,1716247864322,-1420.06,0.00038904,6]
[327598315,1716247864332,-500.0,0.00038904,6]
[327598316,1716247864341,-500.0,0.00038904,6]
[327598317,1716247864351,-500.0,0.00038904,6]
[327598318,1716247864360,-503.35,0.00038904,6]
[327598319,1716247864371,-897.98,0.00038904,6]
[327598320,1716247864380,-500.0,0.00038904,6]
[327598321,1716247864389,-898.1,0.00038904,6]
[327598322,1716247864399,-500.0,0.00038904,6]
[327598323,1716247864411,-500.0,0.00038904,6]
[327598324,1716247864420,-1585.48,0.00038904,6]
[327598325,1716247864430,-627.86,0.00038904,6]
[327598326,1716247864439,-500.0,0.00038904,6]
[327598327,1716247864450,-1383.82,0.00038904,6]
[327598328,1716247864460,-608.74,0.00038904,6]
[327598329,1716247864469,-1370.93,0.00038904,6]
[327598330,1716247864479,-1378.14,0.00038904,6]
[327598331,1716247864488,-500.0,0.00038904,6]
[327598332,1716247864498,-500.0,0.00038904,6]
[327598333,1716247864507,-2379.3,0.00038904,6]
[327598334,1716247864516,-500.0,0.00038904,6]
[327598335,1716247864527,-500.0,0.00038904,6]
[327598336,1716247864537,-614.6,0.00038904,6]
[327598337,1716247864547,-500.0,0.00038904,6]
[327598338,1716247864556,-1219.15,0.00038904,6]
[327598339,1716247864566,-500.0,0.00038904,6]
[327598340,1716247864575,-500.0,0.00038904,6]
[327598341,1716247864585,-503.76,0.00038904,6]
[327598342,1716247864595,-1391.76,0.00038904,6]
[327598343,1716247864604,-500.0,0.00038904,6]
[327598344,1716247864614,-954.98,0.00038904,6]
[327598345,1716247864623,-500.0,0.00038904,6]
[327598346,1716247864632,-180.79105912,0.00038904,6]
[327598347,1716247864642,-151.0,0.00038904,14]
[327598348,1716247864651,-500.0,0.00038904,6]
[327598349,1716247864660,-840.2,0.00038904,6]
[327598350,1716247864670,-500.0,0.00038904,6]
[327598351,1716247864679,-685.83,0.00038904,6]
[327598352,1716247864694,-609.93,0.00038904,6]
[327598353,1716247864703,-500.0,0.00038904,6]
[327598354,1716247864712,-684.89,0.00038904,6]
[327598355,1716247864722,-500.0,0.00038904,2]
[327598356,1716247864733,-500.0,0.00038904,6]
[327598357,1716247864742,-581.16,0.00038904,6]
[327598358,1716247864752,-500.0,0.00038904,6]
[327598359,1716247864761,-579.77,0.00038904,6]
[327598360,1716247864772,-500.0,0.00038904,6]
[327598361,1716247864785,-316.66009978,0.00038904,6]
[327598362,1716247864795,-500.0,0.00038904,6]
[327598363,1716247864805,-500.0,0.00038904,6]
[327598364,1716247864815,-500.0,0.00038904,6]
[327598365,1716247864824,-500.0,0.00038904,6]
[327598366,1716247864833,-500.0,0.00038904,6]
[327598367,1716247864843,-1795.49,0.00038904,6]
[327598368,1716247864852,-504.38,0.00038904,6]
[327598369,1716247864862,-500.0,0.00038904,6]
[327598370,1716247864871,-2247.54,0.00038904,6]
[327598371,1716247864881,-1672.83,0.00038904,6]
[327598372,1716247864891,-500.0,0.00038904,6]
[327598373,1716247864901,-514.24,0.00038904,6]
[327598374,1716247864911,-974.38,0.00038904,6]
[327598375,1716247864920,-1008.25,0.00038904,6]
[327598376,1716247864929,-500.0,0.00038904,6]
[327598377,1716247864939,-500.0,0.00038904,6]
[327598378,1716247864951,-773.75,0.00038904,6]
[327598379,1716247864961,-652.02,0.00038904,6]
[327598380,1716247864970,-642.24,0.00038904,6]
[327598381,1716247864980,-1220.22,0.00038904,6]
[327598382,1716247864990,-500.0,0.00038904,6]
[327598383,1716247865000,-723.32,0.00038904,6]
[327598384,1716247865010,-1614.37,0.00038904,6]
[327598385,1716247865019,-500.0,0.00038904,6]
[327598386,1716247865029,-1731.83,0.00038904,6]
[327598387,1716247865038,-941.13,0.00038904,6]
[327598388,1716247865048,-2567.96,0.00038904,6]
[327598389,1716247865058,-500.0,0.00038904,6]
[327598390,1716247865067,-952.65,0.00038904,6]
[327598391,1716247865077,-500.0,0.00038904,6]
[327598392,1716247865086,-1017.66,0.00038904,6]
[327598393,1716247865096,-619.3,0.00038904,6]
[327598394,1716247865106,-407.7890562,0.00038904,6]
[327598395,1716247865115,-792.07,0.00038904,6]
[327598396,1716247865125,-500.0,0.00038904,6]
[327598397,1716247865134,-1094.17,0.00038904,6]
[327598398,1716247865144,-817.95,0.00038904,6]
[327598399,1716247865153,-710.25,0.00038904,6]
[327598400,1716247865163,-500.0,0.00038904,6]
[327598401,1716247865172,-684.83,0.00038904,6]
[327598402,1716247865182,-811.85,0.00038904,6]
[327598403,1716247865192,-151.0,0.00038904,14]
[327598404,1716247865201,-500.0,0.00038904,6]
[327598405,1716247865211,-604.83,0.00038904,6]
[327598406,1716247865221,-250.74063446,0.00038904,6]
[327598407,1716247865232,-531.11,0.00038904,6]
[327598408,1716247865243,-500.0,0.00038904,6]
[327598409,1716247865253,-500.0,0.00038904,6]
[327598410,1716247865263,-500.0,0.00038904,6]
[327598411,1716247865273,-599.48,0.00038904,6]
[327598412,1716247865282,-1201.42,0.00038904,6]
[327598413,1716247865292,-500.0,0.00038904,6]
[327598414,1716247865301,-1058.31,0.00038904,6]
[327598415,1716247865313,-500.0,0.00038904,6]
[327598416,1716247865322,-500.0,0.00038904,6]
[327598417,1716247865332,-500.0,0.00038904,6]
[327598418,1716247865341,-500.0,0.00038904,6]
[327598419,1716247865351,-1029.13,0.00038904,6]
[327598420,1716247865360,-500.0,0.00038904,6]
[327598421,1716247865370,-500.0,0.00038904,6]
[327598422,1716247865381,-500.0,0.00038904,6]
[327598423,1716247865390,-2036.57,0.00038904,6]
[327598424,1716247865400,-802.9,0.00038904,6]
[327598425,1716247865410,-784.58,0.00038904,6]
[327598426,1716247865420,-710.82,0.00038904,6]
[327598427,1716247865429,-500.0,0.00038904,6]
[327598428,1716247865440,-955.6,0.00038904,6]
[327598429,1716247865452,-500.0,0.00038904,6]
[327598430,1716247865462,-500.0,0.00038904,6]
[327598431,1716247865471,-727.33,0.00038904,6]
[327598432,1716247865480,-776.68,0.00038904,6]
[327598433,1716247865490,-1142.72,0.00038904,6]
[327598434,1716247865499,-1552.59,0.00038904,6]
[327598435,1716247865508,-1988.93,0.00038904,6]
[327598436,1716247865519,-500.0,0.00038904,6]
[327598437,1716247865528,-500.0,0.00038904,6]
[327598438,1716247865537,-500.0,0.00038904,6]
[327598439,1716247865547,-151.0,0.00038904,14]
[327598440,1716247865557,-500.0,0.00038904,6]
[327598441,1716247865567,-1696.46,0.00038904,6]
[327598442,1716247865577,-1076.84,0.00038904,6]
[327598443,1716247865586,-1235.5,0.00038904,6]
[327598444,1716247865596,-2133.24,0.00038904,6]
[327598445,1716247865605,-2933.52,0.00038904,6]
[327598446,1716247865615,-500.0,0.00038904,6]
[327598447,1716247865625,-2036.56,0.00038904,6]
[327598448,1716247865635,-500.0,0.00038904,6]
[327598449,1716247865644,-726.16,0.00038904,6]
[327598450,1716247865654,-500.0,0.00038904,6]
[327598451,1716247865664,-742.35,0.00038904,6]
[327598452,1716247865674,-500.0,0.00038904,6]
[327598453,1716247865685,-912.27,0.00038904,6]
[327598454,1716247865696,-667.77,0.00038904,6]
[327598455,1716247865711,-500.0,0.00038904,6]
[327598456,1716247865720,-500.0,0.00038904,6]
[327598457,1716247865731,-887.81,0.00038904,6]
[327598458,1716247865741,-500.0,0.00038904,6]
[327598459,1716247865751,-1089.17,0.00038904,6]
[327598460,1716247865761,-947.79,0.00038904,6]
[327598461,1716247865772,-500.0,0.00038904,6]
[327598462,1716247865783,-500.0,0.00038904,6]
[327598463,1716247865793,-500.0,0.00038904,6]
[327598464,1716247865803,-500.0,0.00038904,6]
[327598465,1716247865814,-554.23780584,0.00038904,6]
[327598466,1716247865824,-500.0,0.00038904,6]
[327598467,1716247865834,-903.57,0.00038904,6]
[327598468,1716247865844,-720.86,0.00038904,6]
[327598469,1716247865854,-649.3,0.00038904,6]
[327598470,1716247865864,-500.0,0.00038904,6]
[327598471,1716247865874,-675.11,0.00038904,6]
[327598472,1716247865883,-1078.59,0.00038904,6]
[327598473,1716247865893,-916.43,0.00038904,6]
[327598474,1716247865903,-2484.62,0.00038904,6]
[327598475,1716247865912,-500.0,0.00038904,6]
[327598476,1716247865922,-570.31,0.00038904,6]
[327598477,1716247865932,-500.0,0.00038904,6]
[327598478,1716247865942,-623.27,0.00038904,6]
[327598479,1716247865953,-500.0,0.00038904,6]
[327598480,1716247865963,-1219.04,0.00038904,6]
[327598481,1716247865972,-500.0,0.00038904,6]
[327598482,1716247865982,-2716.83,0.00038904,6]
[327598483,1716247865992,-500.0,0.00038904,6]
[327598484,1716247866003,-818.04,0.00038904,6]
[327598485,1716247866012,-500.0,0.00038904,6]
[327598486,1716247866022,-500.0,0.00038904,6]
[327598487,1716247866031,-1130.36,0.00038904,6]
[327598488,1716247866041,-913.06,0.00038904,6]
[327598489,1716247866051,-500.0,0.00038904,6]
[327598490,1716247866061,-744.97,0.00038904,6]
[327598491,1716247866071,-500.0,0.00038904,6]
[327598492,1716247866080,-1903.63,0.00038904,6]
[327598493,1716247866091,-2613.98,0.00038904,6]
[327598494,1716247866101,-643.857466,0.00038904,6]
[327598495,1716247866112,-500.0,0.00038904,6]
[327598496,1716247866125,-500.0,0.00038904,6]
[327598497,1716247866136,-151.0,0.00038904,14]
[327598498,1716247866146,-767.87,0.00038904,6]
[327598499,1716247866156,-500.0,0.00038904,6]
[327598500,1716247866167,-1444.2,0.00038904,6]
[327598501,1716247866177,-1659.74,0.00038904,6]
[327598502,1716247866187,-500.0,0.00038904,6]
[327598503,1716247866199,-500.0,0.00038904,6]
[327598504,1716247866208,-562.09,0.00038904,6]
[327598505,1716247866218,-1250.75,0.00038904,6]
[327598506,1716247866228,-500.0,0.00038904,6]
[327598507,1716247866238,-500.0,0.00038904,6]
[327598508,1716247866248,-1324.74,0.00038904,6]
[327598509,1716247866258,-500.0,0.00038904,6]
[327598510,1716247866267,-500.0,0.00038904,6]
[327598511,1716247866277,-784.84,0.00038904,6]
[327598512,1716247866288,-622.36,0.00038904,6]
[327598513,1716247866298,-500.0,0.00038904,6]
[327598514,1716247866308,-675.25,0.00038904,6]
[327598515,1716247866320,-500.0,0.00038904,6]
[327598516,1716247866330,-669.01,0.00038904,6]
[327598517,1716247866342,-1519.46,0.00038904,6]
[327598518,1716247866352,-716.13,0.00038904,6]
[327598519,1716247866362,-1489.86,0.00038904,6]
[327598520,1716247866372,-1365.07,0.00038904,6]
[327598521,1716247866382,-2229.94,0.00038904,6]
[327598522,1716247866393,-1146.95,0.00038904,6]
[327598523,1716247866404,-500.0,0.00038904,6]
[327598524,1716247866414,-1039.4,0.00038904,6]
[327598525,1716247866424,-500.0,0.00038904,6]
[327598526,1716247866435,-849.01,0.00038904,6]
[327598527,1716247866447,-500.0,0.00038904,6]
[327598528,1716247866457,-500.0,0.00038904,6]
[327598529,1716247866467,-1110.79,0.00038904,6]
[327598530,1716247866477,-500.0,0.00038904,6]
[327598531,1716247866487,-1347.62,0.00038904,6]
[327598532,1716247866497,-500.0,0.00038904,6]
[327598533,1716247866509,-500.0,0.00038904,6]
[327598534,1716247866520,-500.0,0.00038904,6]
[327598535,1716247866530,-520.73,0.00038904,6]
[327598536,1716247866540,-500.0,0.00038904,6]
[327598537,1716247866550,-742.88,0.00038904,6]
[327598538,1716247866560,-1111.31,0.00038904,6]
[327598539,1716247866570,-500.0,0.00038904,6]
[327598540,1716247866579,-500.0,0.00038904,6]
[327598541,1716247866589,-151.0,0.00038904,14]
[327598542,1716247866599,-1758.06,0.00038904,6]
[327598543,1716247866608,-500.0,0.00038904,6]
[327598544,1716247866619,-500.0,0.00038904,6]
[327598545,1716247866628,-500.0,0.00038904,6]
[327598546,1716247866638,-151.0,0.00038904,14]
[327598547,1716247866648,-500.0,0.00038904,6]
[327598548,1716247866657,-5957.93,0.00038904,6]
[327598549,1716247866667,-1797.93,0.00038904,6]
[327598550,1716247866677,-672.05,0.00038904,6]
[327598551,1716247866694,-500.0,0.00038904,6]
[327598552,1716247866704,-541.21,0.00038904,6]
[327598553,1716247866715,-991.49,0.00038904,6]
[327598554,1716247866725,-13007.81,0.00038904,6]
[327598555,1716247866737,-443.61,0.00038904,6]
[327598556,1716247866747,-500.0,0.00038904,6]
[327598557,1716247866756,-678.74,0.00038904,6]
[327598558,1716247866768,-2561.96,0.00038904,6]
[327598559,1716247866778,-2054.96,0.00038904,6]
[327598560,1716247866788,-500.0,0.00038904,6]
[327598561,1716247866798,-1879.58,0.00038904,6]
[327598562,1716247866808,-822.02,0.00038904,6]
[327598563,1716247866818,-1292.21,0.00038904,6]
[327598564,1716247866828,-856.68,0.00038904,6]
[327598565,1716247866838,-1154.78,0.00038904,6]
[327598566,1716247866848,-1682.32,0.00038904,6]
[327598567,1716247866858,-1112.51,0.00038904,6]
[327598568,1716247866869,-569.95,0.00038904,6]
[327598569,1716247866878,-500.0,0.00038904,6]
[327598570,1716247866888,-500.0,0.00038904,6]
[327598571,1716247866900,-500.0,0.00038904,6]
[327598572,1716247866910,-889.87,0.00038904,6]
[327598573,1716247866921,-838.99,0.00038904,6]
[327598574,1716247866931,-500.0,0.00038904,6]
[327598575,1716247866941,-500.0,0.00038904,6]
[327598576,1716247866953,-500.0,0.00038904,6]
[327598577,1716247866963,-151.0,0.00038904,14]
[327598578,1716247866973,-2281.94,0.00038904,6]
[327598579,1716247866983,-500.0,0.00038904,6]
[327598580,1716247866992,-292.51622481,0.00038904,6]
[327598581,1716247867003,-2092.87,0.00038904,6]
[327598582,1716247867015,-1205.23,0.00038904,6]
[327598583,1716247867278,-500.0,0.00038904,6]
[327598584,1716247867298,-500.0,0.00038904,6]
[327598585,1716247867308,-151.0,0.00038904,14]
[327598586,1716247867318,-806.5,0.00038904,6]
[327598587,1716247867328,-500.0,0.00038904,6]
[327598588,1716247867338,-6073.88,0.00038904,6]
[327598589,1716247867349,-1240.75,0.00038904,6]
[327598590,1716247867358,-2120.51,0.00038904,6]
[327598591,1716247867368,-684.69,0.00038904,6]